[Event "Titled Tuesday Blitz August 08 Early 2023"]
[White "Csonka, Balazs"]
[Black "Liyanage, Ranindu Dilshan"]
[WhiteFideId "742910"]
[BlackFideId "9915834"]
[WhiteElo "2725"]
[BlackElo "2603"]
[Result "1/2-1/2"]
[Round "10"]
[TimeControl "180+1"]
[Date "2023.08.08"]
[WhiteClock "0:00:05"]
[BlackClock "0:00:08"]
[Board "43"]

1. e4 {[%clk 0:03:00]}  c5 {[%clk 0:03:00]} 2. Nf3 {[%clk 0:02:58]}  Nc6 {[%clk 0:03:00]} 3. Nc3 {[%clk 0:02:56]}  Nf6 {[%clk 0:03:00]} 4. d4 {[%clk 0:02:47]}  cxd4 {[%clk 0:02:59]} 5. Nxd4 {[%clk 0:02:48]}  e5 {[%clk 0:02:59]} 6. Ndb5 {[%clk 0:02:48]}  d6 {[%clk 0:03:00]} 7. Bg5 {[%clk 0:02:47]}  a6 {[%clk 0:02:55]} 8. Na3 {[%clk 0:02:42]}  b5 {[%clk 0:02:55]} 9. Bxf6 {[%clk 0:02:41]}  gxf6 {[%clk 0:02:53]} 10. Nd5 {[%clk 0:02:42]}  Bg7 {[%clk 0:02:52]} 11. Bd3 {[%clk 0:02:39]}  Ne7 {[%clk 0:02:51]} 12. Nxe7 {[%clk 0:02:38]}  Qxe7 {[%clk 0:02:50]} 13. c4 {[%clk 0:02:36]}  O-O {[%clk 0:02:27]} 14. O-O {[%clk 0:02:37]}  Bb7 {[%clk 0:02:20]} 15. Qf3 {[%clk 0:02:21]}  Rfd8 {[%clk 0:02:08]} 16. Nc2 {[%clk 0:02:03]}  bxc4 {[%clk 0:01:19]} 17. Bxc4 {[%clk 0:02:04]}  Rac8 {[%clk 0:01:19]} 18. Ne3 {[%clk 0:02:02]}  Rxc4 {[%clk 0:01:18]} 19. Nxc4 {[%clk 0:02:03]}  d5 {[%clk 0:01:19]} 20. Ne3 {[%clk 0:01:57]}  dxe4 {[%clk 0:01:18]} 21. Qg4 {[%clk 0:01:56]}  Kh8 {[%clk 0:01:03]} 22. Rfd1 {[%clk 0:01:47]}  Bf8 {[%clk 0:00:23]} 23. Nf5 {[%clk 0:01:19]}  Qc7 {[%clk 0:00:21]} 24. Rxd8 {[%clk 0:01:04]}  Qxd8 {[%clk 0:00:22]} 25. Rd1 {[%clk 0:01:04]}  Qc7 {[%clk 0:00:21]} 26. Qh4 {[%clk 0:00:50]}  Qb6 {[%clk 0:00:15]} 27. Rd6 {[%clk 0:00:45]}  Qxb2 {[%clk 0:00:10]} 28. Qxf6+ {[%clk 0:00:40]}  Kg8 {[%clk 0:00:10]} 29. h3 {[%clk 0:00:22]}  Qc1+ {[%clk 0:00:10]} 30. Kh2 {[%clk 0:00:19]}  Qf4+ {[%clk 0:00:10]} 31. Kg1 {[%clk 0:00:16]}  Qc1+ {[%clk 0:00:10]} 32. Kh2 {[%clk 0:00:16]}  Qf4+ {[%clk 0:00:11]} 33. Ng3 {[%clk 0:00:07]}  Bxd6 {[%clk 0:00:11]} 34. Qxd6 {[%clk 0:00:08]}  Kg7 {[%clk 0:00:07]} 35. Kg1 {[%clk 0:00:08]}  Qc1+ {[%clk 0:00:07]} 36. Kh2 {[%clk 0:00:08]}  Qf4 {[%clk 0:00:07]} 37. Kg1 {[%clk 0:00:04]}  Qc1+ {[%clk 0:00:07]} 38. Kh2 {[%clk 0:00:05]}  Qf4 {[%clk 0:00:08]} 1/2-1/2


[Site "https://www.chess.com"]

[Event "Titled Tuesday Blitz August 08 Early 2023"]
[White "Akobian, Varuzhan"]
[Black "Vyatkin, Dmitry"]
[WhiteFideId "13300580"]
[BlackFideId "4171900"]
[WhiteElo "2720"]
[BlackElo "2541"]
[Result "1-0"]
[Round "10"]
[TimeControl "180+1"]
[Date "2023.08.08"]
[WhiteClock "0:01:05"]
[BlackClock "0:00:00"]
[Board "45"]

1. d4 {[%clk 0:03:00]}  Nf6 {[%clk 0:02:59]} 2. c4 {[%clk 0:03:00]}  g6 {[%clk 0:02:58]} 3. Nf3 {[%clk 0:03:00]}  Bg7 {[%clk 0:02:58]} 4. Nc3 {[%clk 0:03:01]}  d6 {[%clk 0:02:58]} 5. Bg5 {[%clk 0:03:01]}  h6 {[%clk 0:02:50]} 6. Bf4 {[%clk 0:03:00]}  g5 {[%clk 0:02:32]} 7. Bd2 {[%clk 0:02:56]}  c5 {[%clk 0:02:24]} 8. d5 {[%clk 0:02:53]}  Bf5 {[%clk 0:02:22]} 9. h4 {[%clk 0:02:45]}  g4 {[%clk 0:02:20]} 10. Ng1 {[%clk 0:02:44]}  Nbd7 {[%clk 0:02:13]} 11. f3 {[%clk 0:02:36]}  h5 {[%clk 0:01:55]} 12. e4 {[%clk 0:02:36]}  Bg6 {[%clk 0:01:55]} 13. Nge2 {[%clk 0:02:33]}  Ne5 {[%clk 0:01:27]} 14. Nf4 {[%clk 0:02:02]}  Bh7 {[%clk 0:01:27]} 15. Be2 {[%clk 0:01:53]}  a6 {[%clk 0:01:25]} 16. a4 {[%clk 0:01:52]}  Qb6 {[%clk 0:01:20]} 17. Qc2 {[%clk 0:01:46]}  O-O {[%clk 0:01:14]} 18. a5 {[%clk 0:01:42]}  Qc7 {[%clk 0:01:13]} 19. O-O {[%clk 0:01:38]}  Rae8 {[%clk 0:01:13]} 20. Nd1 {[%clk 0:01:33]}  e6 {[%clk 0:01:12]} 21. Ne3 {[%clk 0:01:32]}  Qd7 {[%clk 0:01:05]} 22. Nd3 {[%clk 0:01:31]}  exd5 {[%clk 0:01:02]} 23. Nxe5 {[%clk 0:01:30]}  Rxe5 {[%clk 0:01:01]} 24. cxd5 {[%clk 0:01:30]}  Nxd5 {[%clk 0:00:57]} 25. Nxd5 {[%clk 0:01:28]}  Rxd5 {[%clk 0:00:57]} 26. Bc4 {[%clk 0:01:22]}  Re5 {[%clk 0:00:43]} 27. Bc3 {[%clk 0:01:20]}  g3 {[%clk 0:00:37]} 28. Qd2 {[%clk 0:01:12]}  Qe7 {[%clk 0:00:27]} 29. Qf4 {[%clk 0:01:11]}  Kh8 {[%clk 0:00:21]} 30. Qxg3 {[%clk 0:01:07]}  Rg8 {[%clk 0:00:17]} 31. Qf4 {[%clk 0:01:06]}  Bf6 {[%clk 0:00:15]} 32. Rad1 {[%clk 0:01:05]}  Bxh4 {[%clk 0:00:00]} 33. Rxd6 {[%clk 0:01:05]} 1-0


[Site "https://www.chess.com"]

[Event "Titled Tuesday Blitz August 08 Early 2023"]
[White "Zeynalli, Rashad"]
[Black "Sethuraman, S.P."]
[WhiteFideId "13403320"]
[BlackFideId "5021596"]
[WhiteElo "2652"]
[BlackElo "2790"]
[Result "1-0"]
[Round "10"]
[TimeControl "180+1"]
[Date "2023.08.08"]
[WhiteClock "0:00:08"]
[BlackClock "0:00:02"]
[Board "48"]

1. e4 {[%clk 0:03:00]}  c5 {[%clk 0:02:59]} 2. Nf3 {[%clk 0:03:01]}  Nc6 {[%clk 0:03:00]} 3. Bb5 {[%clk 0:03:01]}  e5 {[%clk 0:02:58]} 4. c3 {[%clk 0:02:57]}  Bd6 {[%clk 0:02:57]} 5. O-O {[%clk 0:02:54]}  a6 {[%clk 0:02:57]} 6. Ba4 {[%clk 0:02:53]}  b5 {[%clk 0:02:57]} 7. Bc2 {[%clk 0:02:52]}  Nge7 {[%clk 0:02:54]} 8. a4 {[%clk 0:02:51]}  Bb7 {[%clk 0:02:52]} 9. d4 {[%clk 0:02:50]}  Qc7 {[%clk 0:02:38]} 10. d5 {[%clk 0:02:47]}  Na5 {[%clk 0:02:33]} 11. Nh4 {[%clk 0:02:40]}  O-O {[%clk 0:02:24]} 12. Re1 {[%clk 0:02:33]}  c4 {[%clk 0:02:22]} 13. Be3 {[%clk 0:02:29]}  Kh8 {[%clk 0:02:09]} 14. Qh5 {[%clk 0:02:27]}  g6 {[%clk 0:01:57]} 15. Qg4 {[%clk 0:02:18]}  Nb3 {[%clk 0:01:51]} 16. Bxb3 {[%clk 0:02:03]}  cxb3 {[%clk 0:01:51]} 17. axb5 {[%clk 0:02:04]}  f5 {[%clk 0:01:50]} 18. exf5 {[%clk 0:02:03]}  gxf5 {[%clk 0:01:51]} 19. Qh5 {[%clk 0:01:51]}  Bxd5 {[%clk 0:01:46]} 20. Bg5 {[%clk 0:01:40]}  Kg8 {[%clk 0:00:46]} 21. Bxe7 {[%clk 0:01:39]}  Bxe7 {[%clk 0:00:47]} 22. Nxf5 {[%clk 0:01:40]}  Bf6 {[%clk 0:00:45]} 23. Ra4 {[%clk 0:01:34]}  Kh8 {[%clk 0:00:40]} 24. bxa6 {[%clk 0:01:16]}  Rg8 {[%clk 0:00:39]} 25. Rg4 {[%clk 0:01:15]}  Rxg4 {[%clk 0:00:38]} 26. Qxg4 {[%clk 0:01:10]}  Rg8 {[%clk 0:00:38]} 27. Qb4 {[%clk 0:00:36]}  Rxg2+ {[%clk 0:00:38]} 28. Kf1 {[%clk 0:00:34]}  Rg8 {[%clk 0:00:37]} 29. Nd2 {[%clk 0:00:31]}  Qc6 {[%clk 0:00:35]} 30. Qd6 {[%clk 0:00:20]}  Bg2+ {[%clk 0:00:18]} 31. Ke2 {[%clk 0:00:20]}  Bf3+ {[%clk 0:00:17]} 32. Nxf3 {[%clk 0:00:17]}  Qe4+ {[%clk 0:00:17]} 33. Ne3 {[%clk 0:00:16]}  Bg7 {[%clk 0:00:16]} 34. Rg1 {[%clk 0:00:15]}  Rf8 {[%clk 0:00:13]} 35. Ng5 {[%clk 0:00:13]}  Qf4 {[%clk 0:00:11]} 36. f3 {[%clk 0:00:09]}  e4 {[%clk 0:00:10]} 37. Qxf4 {[%clk 0:00:07]}  Rxf4 {[%clk 0:00:02]} 38. Nxe4 {[%clk 0:00:08]} 1-0


[Site "https://www.chess.com"]

[Event "Titled Tuesday Blitz August 08 Early 2023"]
[White "Komov, Roman"]
[Black "Aradhya, Garg"]
[WhiteFideId "24175714"]
[BlackFideId "25006746"]
[WhiteElo "2625"]
[BlackElo "2757"]
[Result "0-1"]
[Round "10"]
[TimeControl "180+1"]
[Date "2023.08.08"]
[WhiteClock "0:00:05"]
[BlackClock "0:01:44"]
[Board "50"]

1. e4 {[%clk 0:03:00]}  e5 {[%clk 0:02:57]} 2. Nf3 {[%clk 0:02:59]}  Nc6 {[%clk 0:02:57]} 3. Nc3 {[%clk 0:02:58]}  Nf6 {[%clk 0:02:57]} 4. d4 {[%clk 0:02:55]}  Bb4 {[%clk 0:02:57]} 5. Nxe5 {[%clk 0:02:50]}  Bxc3+ {[%clk 0:02:57]} 6. bxc3 {[%clk 0:02:50]}  Qe7 {[%clk 0:02:58]} 7. Nxc6 {[%clk 0:02:40]}  Qxe4+ {[%clk 0:02:56]} 8. Be2 {[%clk 0:02:36]}  Qxc6 {[%clk 0:02:52]} 9. O-O {[%clk 0:02:31]}  Qxc3 {[%clk 0:02:52]} 10. Bg5 {[%clk 0:02:30]}  Ne4 {[%clk 0:02:48]} 11. Bh4 {[%clk 0:02:22]}  O-O {[%clk 0:02:47]} 12. Rb1 {[%clk 0:02:12]}  d5 {[%clk 0:02:44]} 13. Rb3 {[%clk 0:02:07]}  Qd2 {[%clk 0:02:34]} 14. f3 {[%clk 0:01:46]}  Qxd1 {[%clk 0:02:33]} 15. Rxd1 {[%clk 0:01:46]}  Nd6 {[%clk 0:02:33]} 16. Rc3 {[%clk 0:01:31]}  Re8 {[%clk 0:02:29]} 17. Bd3 {[%clk 0:01:25]}  c6 {[%clk 0:02:30]} 18. Rb1 {[%clk 0:01:20]}  Bf5 {[%clk 0:02:23]} 19. Bg3 {[%clk 0:01:19]}  Bxd3 {[%clk 0:02:23]} 20. Bxd6 {[%clk 0:01:18]}  Ba6 {[%clk 0:02:22]} 21. Bf4 {[%clk 0:00:59]}  Re2 {[%clk 0:02:22]} 22. Re3 {[%clk 0:00:55]}  Rxc2 {[%clk 0:02:21]} 23. Rbe1 {[%clk 0:00:51]}  h6 {[%clk 0:02:20]} 24. Re7 {[%clk 0:00:48]}  Rxa2 {[%clk 0:02:10]} 25. Rc7 {[%clk 0:00:39]}  Re2 {[%clk 0:02:10]} 26. Rxe2 {[%clk 0:00:39]}  Bxe2 {[%clk 0:02:11]} 27. Rxb7 {[%clk 0:00:39]}  a5 {[%clk 0:02:07]} 28. Rb8+ {[%clk 0:00:39]}  Rxb8 {[%clk 0:02:07]} 29. Bxb8 {[%clk 0:00:40]}  a4 {[%clk 0:02:06]} 30. Bd6 {[%clk 0:00:40]}  f6 {[%clk 0:02:06]} 31. Kf2 {[%clk 0:00:40]}  Bd3 {[%clk 0:02:07]} 32. Ke3 {[%clk 0:00:40]}  Bf1 {[%clk 0:02:07]} 33. g3 {[%clk 0:00:37]}  Kf7 {[%clk 0:02:06]} 34. Kd2 {[%clk 0:00:33]}  Ke6 {[%clk 0:02:05]} 35. Bf8 {[%clk 0:00:32]}  Kf7 {[%clk 0:02:05]} 36. Bc5 {[%clk 0:00:29]}  h5 {[%clk 0:02:06]} 37. h4 {[%clk 0:00:27]}  Ke6 {[%clk 0:02:05]} 38. Bb4 {[%clk 0:00:25]}  Kf5 {[%clk 0:02:05]} 39. Ke3 {[%clk 0:00:19]}  Bc4 {[%clk 0:02:05]} 40. Bf8 {[%clk 0:00:19]}  g5 {[%clk 0:02:04]} 41. Be7 {[%clk 0:00:17]}  Bb3 {[%clk 0:02:01]} 42. Bd6 {[%clk 0:00:16]}  g4 {[%clk 0:02:00]} 43. f4 {[%clk 0:00:15]}  Ke6 {[%clk 0:01:59]} 44. Bc5 {[%clk 0:00:15]}  Kd7 {[%clk 0:01:59]} 45. Kd2 {[%clk 0:00:16]}  f5 {[%clk 0:01:58]} 46. Kc3 {[%clk 0:00:16]}  Kc8 {[%clk 0:01:59]} 47. Ba3 {[%clk 0:00:10]}  Kb7 {[%clk 0:01:58]} 48. Kb4 {[%clk 0:00:11]}  Kb6 {[%clk 0:01:57]} 49. Bb2 {[%clk 0:00:10]}  Bd1 {[%clk 0:01:57]} 50. Bc3 {[%clk 0:00:10]}  a3 {[%clk 0:01:51]} 51. Kxa3 {[%clk 0:00:10]}  Kb5 {[%clk 0:01:51]} 52. Kb2 {[%clk 0:00:05]}  Kc4 {[%clk 0:01:51]} 53. Ba5 {[%clk 0:00:04]}  Kd3 {[%clk 0:01:51]} 54. Kc1 {[%clk 0:00:04]}  Ba4 {[%clk 0:01:51]} 55. Bb6 {[%clk 0:00:03]}  Ke3 {[%clk 0:01:51]} 56. Bd8 {[%clk 0:00:02]}  Kf3 {[%clk 0:01:49]} 57. Kd2 {[%clk 0:00:02]}  Kxg3 {[%clk 0:01:49]} 58. Ke2 {[%clk 0:00:03]}  Kxf4 {[%clk 0:01:49]} 59. Kd3 {[%clk 0:00:02]}  Kf3 {[%clk 0:01:49]} 60. Kd2 {[%clk 0:00:02]}  g3 {[%clk 0:01:50]} 61. Ke1 {[%clk 0:00:03]}  g2 {[%clk 0:01:50]} 62. Kd2 {[%clk 0:00:02]}  g1=Q {[%clk 0:01:51]} 63. Kc3 {[%clk 0:00:03]}  Qe3+ {[%clk 0:01:50]} 64. Kb4 {[%clk 0:00:03]}  Qxd4+ {[%clk 0:01:51]} 65. Ka5 {[%clk 0:00:04]}  Qa7+ {[%clk 0:01:50]} 66. Kb4 {[%clk 0:00:04]}  c5+ {[%clk 0:01:51]} 67. Kc3 {[%clk 0:00:04]}  d4+ {[%clk 0:01:51]} 68. Kc4 {[%clk 0:00:04]}  Be8 {[%clk 0:01:46]} 69. Bf6 {[%clk 0:00:03]}  Qa6+ {[%clk 0:01:46]} 70. Kd5 {[%clk 0:00:03]}  Qxf6 {[%clk 0:01:46]} 71. Kc4 {[%clk 0:00:02]}  Qd6 {[%clk 0:01:46]} 72. Kd3 {[%clk 0:00:02]}  Bb5+ {[%clk 0:01:45]} 73. Kd2 {[%clk 0:00:02]}  c4 {[%clk 0:01:45]} 74. Kc2 {[%clk 0:00:03]}  Qa3 {[%clk 0:01:46]} 75. Kd2 {[%clk 0:00:04]}  c3+ {[%clk 0:01:43]} 76. Kc2 {[%clk 0:00:04]}  d3+ {[%clk 0:01:44]} 77. Kb1 {[%clk 0:00:05]}  Qb2# {[%clk 0:01:44]} 0-1


[Site "https://www.chess.com"]

[Event "Titled Tuesday Blitz August 08 Early 2023"]
[White "Aslanov, Umid"]
[Black "jumpingknight20"]
[WhiteFideId "13412620"]
[WhiteElo "2607"]
[BlackElo "2695"]
[Result "1-0"]
[Round "10"]
[TimeControl "180+1"]
[Date "2023.08.08"]
[WhiteClock "0:00:21"]
[BlackClock "0:00:03"]
[Board "51"]

1. e4 {[%clk 0:03:00]}  c5 {[%clk 0:02:53]} 2. Nf3 {[%clk 0:03:01]}  d6 {[%clk 0:02:53]} 3. d4 {[%clk 0:03:02]}  cxd4 {[%clk 0:02:54]} 4. Nxd4 {[%clk 0:03:02]}  Nf6 {[%clk 0:02:55]} 5. Nc3 {[%clk 0:03:03]}  a6 {[%clk 0:02:55]} 6. Bc4 {[%clk 0:03:03]}  e6 {[%clk 0:02:53]} 7. Bb3 {[%clk 0:03:04]}  b5 {[%clk 0:02:50]} 8. Bg5 {[%clk 0:03:04]}  Be7 {[%clk 0:02:45]} 9. Qf3 {[%clk 0:03:04]}  Qc7 {[%clk 0:02:42]} 10. O-O-O {[%clk 0:03:04]}  b4 {[%clk 0:02:21]} 11. Ba4+ {[%clk 0:02:16]}  Bd7 {[%clk 0:02:16]} 12. Bxd7+ {[%clk 0:02:15]}  Nfxd7 {[%clk 0:01:57]} 13. Bxe7 {[%clk 0:02:14]}  bxc3 {[%clk 0:01:53]} 14. e5 {[%clk 0:01:58]}  d5 {[%clk 0:01:39]} 15. Bd6 {[%clk 0:01:57]}  Qb6 {[%clk 0:01:37]} 16. Qxc3 {[%clk 0:01:50]}  a5 {[%clk 0:01:37]} 17. f4 {[%clk 0:01:32]}  Na6 {[%clk 0:01:22]} 18. f5 {[%clk 0:01:31]}  Nac5 {[%clk 0:01:17]} 19. fxe6 {[%clk 0:01:28]}  fxe6 {[%clk 0:01:07]} 20. Nb3 {[%clk 0:01:08]}  Ne4 {[%clk 0:01:01]} 21. Qh3 {[%clk 0:01:08]}  Nf8 {[%clk 0:00:42]} 22. Rhf1 {[%clk 0:01:02]}  O-O-O {[%clk 0:00:34]} 23. Rxf8 {[%clk 0:01:00]}  Rhxf8 {[%clk 0:00:35]} 24. Qxe6+ {[%clk 0:01:00]}  Rd7 {[%clk 0:00:21]} 25. Qxd5 {[%clk 0:00:59]}  Nxd6 {[%clk 0:00:15]} 26. exd6 {[%clk 0:00:46]}  Qb7 {[%clk 0:00:08]} 27. Qc4+ {[%clk 0:00:44]}  Kb8 {[%clk 0:00:06]} 28. Nc5 {[%clk 0:00:39]}  Rc8 {[%clk 0:00:05]} 29. Nxd7+ {[%clk 0:00:32]}  Qxd7 {[%clk 0:00:06]} 30. Qd4 {[%clk 0:00:29]}  Qc6 {[%clk 0:00:04]} 31. Rd2 {[%clk 0:00:23]}  Rd8 {[%clk 0:00:03]} 32. b3 {[%clk 0:00:23]}  g6 {[%clk 0:00:02]} 33. a4 {[%clk 0:00:23]}  Kb7 {[%clk 0:00:03]} 34. Qe5 {[%clk 0:00:21]}  Re8 {[%clk 0:00:03]} 35. Qxa5 {[%clk 0:00:19]}  Re1+ {[%clk 0:00:02]} 36. Kb2 {[%clk 0:00:19]}  Qe8 {[%clk 0:00:02]} 37. Qb5+ {[%clk 0:00:19]}  Qxb5 {[%clk 0:00:02]} 38. axb5 {[%clk 0:00:20]}  Kc8 {[%clk 0:00:03]} 39. d7+ {[%clk 0:00:20]}  Kd8 {[%clk 0:00:04]} 40. b6 {[%clk 0:00:21]}  Re6 {[%clk 0:00:04]} 41. b7 {[%clk 0:00:22]}  Rb6 {[%clk 0:00:05]} 42. c4 {[%clk 0:00:20]}  Rxb7 {[%clk 0:00:06]} 43. Kc3 {[%clk 0:00:21]}  Rc7 {[%clk 0:00:05]} 44. b4 {[%clk 0:00:20]}  Ra7 {[%clk 0:00:06]} 45. c5 {[%clk 0:00:21]}  Ra1 {[%clk 0:00:06]} 46. Kc4 {[%clk 0:00:21]}  Ra8 {[%clk 0:00:06]} 47. c6 {[%clk 0:00:21]}  Ra1 {[%clk 0:00:04]} 48. Kc5 {[%clk 0:00:20]}  Rc1+ {[%clk 0:00:04]} 49. Kb6 {[%clk 0:00:21]}  Rc3 {[%clk 0:00:04]} 50. b5 {[%clk 0:00:21]}  Rc4 {[%clk 0:00:03]} 51. Re2 {[%clk 0:00:21]} 1-0


[Site "https://www.chess.com"]

[Event "Titled Tuesday Blitz August 08 Early 2023"]
[White "Colbow, Collin"]
[Black "KarolKacprzak"]
[WhiteFideId "16201132"]
[WhiteElo "2603"]
[BlackElo "2683"]
[Result "0-1"]
[Round "10"]
[TimeControl "180+1"]
[Date "2023.08.08"]
[WhiteClock "0:00:12"]
[BlackClock "0:00:21"]
[Board "52"]

1. d4 {[%clk 0:02:59]}  e6 {[%clk 0:02:59]} 2. Bf4 {[%clk 0:02:55]}  Nf6 {[%clk 0:02:56]} 3. Nc3 {[%clk 0:02:55]}  d5 {[%clk 0:02:54]} 4. Nb5 {[%clk 0:02:53]}  Na6 {[%clk 0:02:54]} 5. e3 {[%clk 0:02:53]}  c6 {[%clk 0:02:54]} 6. Nc3 {[%clk 0:02:52]}  Be7 {[%clk 0:02:53]} 7. Nf3 {[%clk 0:02:52]}  O-O {[%clk 0:02:52]} 8. Bd3 {[%clk 0:02:53]}  b5 {[%clk 0:02:47]} 9. a3 {[%clk 0:02:51]}  Nc7 {[%clk 0:02:48]} 10. e4 {[%clk 0:02:49]}  dxe4 {[%clk 0:02:45]} 11. Nxe4 {[%clk 0:02:50]}  Nxe4 {[%clk 0:02:45]} 12. Bxe4 {[%clk 0:02:51]}  Nd5 {[%clk 0:02:46]} 13. Bg3 {[%clk 0:02:49]}  c5 {[%clk 0:02:41]} 14. O-O {[%clk 0:02:46]}  Bb7 {[%clk 0:02:40]} 15. Qe2 {[%clk 0:02:33]}  a6 {[%clk 0:02:35]} 16. Rad1 {[%clk 0:02:33]}  Qb6 {[%clk 0:02:36]} 17. dxc5 {[%clk 0:02:29]}  Bxc5 {[%clk 0:02:30]} 18. Ne5 {[%clk 0:02:00]}  Rad8 {[%clk 0:02:28]} 19. Bh4 {[%clk 0:01:41]}  Nf4 {[%clk 0:02:09]} 20. Qf3 {[%clk 0:01:30]}  Rxd1 {[%clk 0:02:05]} 21. Rxd1 {[%clk 0:01:28]}  Bxe4 {[%clk 0:02:02]} 22. Qxe4 {[%clk 0:01:29]}  Ng6 {[%clk 0:01:54]} 23. Nd7 {[%clk 0:01:29]}  Qc7 {[%clk 0:01:06]} 24. Nxf8 {[%clk 0:01:28]}  Bxf8 {[%clk 0:01:07]} 25. Bg3 {[%clk 0:01:26]}  Qc8 {[%clk 0:01:06]} 26. h4 {[%clk 0:01:22]}  h5 {[%clk 0:01:03]} 27. c3 {[%clk 0:01:20]}  Be7 {[%clk 0:01:01]} 28. Qf3 {[%clk 0:01:14]}  Bxh4 {[%clk 0:00:50]} 29. Bxh4 {[%clk 0:01:12]}  Nxh4 {[%clk 0:00:50]} 30. Qxh5 {[%clk 0:01:12]}  Nf5 {[%clk 0:00:51]} 31. Qg5 {[%clk 0:01:04]}  f6 {[%clk 0:00:44]} 32. Qd2 {[%clk 0:01:04]}  Qc4 {[%clk 0:00:40]} 33. Qd8+ {[%clk 0:00:59]}  Kh7 {[%clk 0:00:39]} 34. Qe8 {[%clk 0:01:00]}  Qg4 {[%clk 0:00:38]} 35. Rd8 {[%clk 0:00:57]}  Nh4 {[%clk 0:00:34]} 36. Qc6 {[%clk 0:00:47]}  e5 {[%clk 0:00:34]} 37. Rd3 {[%clk 0:00:37]}  e4 {[%clk 0:00:29]} 38. Rg3 {[%clk 0:00:37]}  Qf4 {[%clk 0:00:22]} 39. Qd7 {[%clk 0:00:32]}  Nf5 {[%clk 0:00:17]} 40. Rh3+ {[%clk 0:00:22]}  Nh6 {[%clk 0:00:18]} 41. Qd1 {[%clk 0:00:16]}  f5 {[%clk 0:00:18]} 42. f3 {[%clk 0:00:11]}  e3 {[%clk 0:00:17]} 43. g3 {[%clk 0:00:07]}  Qc4 {[%clk 0:00:13]} 44. Rh2 {[%clk 0:00:07]}  f4 {[%clk 0:00:13]} 45. gxf4 {[%clk 0:00:07]}  Qxf4 {[%clk 0:00:14]} 46. Qe2 {[%clk 0:00:08]}  Kg8 {[%clk 0:00:13]} 47. Rg2 {[%clk 0:00:06]}  Nf5 {[%clk 0:00:12]} 48. Rg4 {[%clk 0:00:05]}  Qe5 {[%clk 0:00:11]} 49. Qd3 {[%clk 0:00:05]}  e2 {[%clk 0:00:10]} 50. Qd8+ {[%clk 0:00:05]}  Kf7 {[%clk 0:00:10]} 51. Qd7+ {[%clk 0:00:05]}  Ne7 {[%clk 0:00:11]} 52. Re4 {[%clk 0:00:03]}  e1=Q+ {[%clk 0:00:11]} 53. Rxe1 {[%clk 0:00:04]}  Qxe1+ {[%clk 0:00:11]} 54. Kg2 {[%clk 0:00:04]}  Qe2+ {[%clk 0:00:12]} 55. Kg3 {[%clk 0:00:04]}  Qxb2 {[%clk 0:00:13]} 56. Qb7 {[%clk 0:00:02]}  Qxa3 {[%clk 0:00:12]} 57. Qe4 {[%clk 0:00:03]}  Qxc3 {[%clk 0:00:12]} 58. Qf4+ {[%clk 0:00:03]}  Qf6 {[%clk 0:00:13]} 59. Qc7 {[%clk 0:00:03]}  Qg6+ {[%clk 0:00:14]} 60. Kf2 {[%clk 0:00:03]}  Qc6 {[%clk 0:00:15]} 61. Qf4+ {[%clk 0:00:03]}  Kg8 {[%clk 0:00:14]} 62. Qg4 {[%clk 0:00:04]}  Qf6 {[%clk 0:00:14]} 63. Qd7 {[%clk 0:00:04]}  b4 {[%clk 0:00:13]} 64. Qe8+ {[%clk 0:00:04]}  Qf8 {[%clk 0:00:12]} 65. Qd7 {[%clk 0:00:05]}  a5 {[%clk 0:00:12]} 66. Qa7 {[%clk 0:00:04]}  Nc6 {[%clk 0:00:11]} 67. Qb6 {[%clk 0:00:03]}  Qf6 {[%clk 0:00:11]} 68. Qb7 {[%clk 0:00:02]}  a4 {[%clk 0:00:10]} 69. Qc8+ {[%clk 0:00:02]}  Kh7 {[%clk 0:00:10]} 70. Qh3+ {[%clk 0:00:02]}  Kg6 {[%clk 0:00:10]} 71. Qg4+ {[%clk 0:00:02]}  Kf7 {[%clk 0:00:10]} 72. Qd7+ {[%clk 0:00:02]}  Ne7 {[%clk 0:00:11]} 73. Qxa4 {[%clk 0:00:02]}  Qd4+ {[%clk 0:00:11]} 74. Ke2 {[%clk 0:00:01]}  Nf5 {[%clk 0:00:11]} 75. Qb3+ {[%clk 0:00:02]}  Kf6 {[%clk 0:00:10]} 76. Qa4 {[%clk 0:00:02]}  Qe3+ {[%clk 0:00:10]} 77. Kf1 {[%clk 0:00:02]}  Qxf3+ {[%clk 0:00:11]} 78. Kg1 {[%clk 0:00:03]}  Qe4 {[%clk 0:00:11]} 79. Qa6+ {[%clk 0:00:02]}  Kg5 {[%clk 0:00:12]} 80. Qa7 {[%clk 0:00:03]}  Qg4+ {[%clk 0:00:12]} 81. Kf1 {[%clk 0:00:03]}  Qf3+ {[%clk 0:00:11]} 82. Ke1 {[%clk 0:00:03]}  Qe3+ {[%clk 0:00:11]} 83. Qxe3+ {[%clk 0:00:03]}  Nxe3 {[%clk 0:00:12]} 84. Ke2 {[%clk 0:00:04]}  Kf4 {[%clk 0:00:13]} 85. Kd3 {[%clk 0:00:04]}  g5 {[%clk 0:00:14]} 86. Kd4 {[%clk 0:00:04]}  g4 {[%clk 0:00:15]} 87. Kc5 {[%clk 0:00:05]}  g3 {[%clk 0:00:16]} 88. Kxb4 {[%clk 0:00:06]}  g2 {[%clk 0:00:17]} 89. Kc5 {[%clk 0:00:06]}  g1=Q {[%clk 0:00:17]} 90. Kd6 {[%clk 0:00:07]}  Qg5 {[%clk 0:00:18]} 91. Ke6 {[%clk 0:00:08]}  Qd5+ {[%clk 0:00:18]} 92. Ke7 {[%clk 0:00:08]}  Qc6 {[%clk 0:00:19]} 93. Kf7 {[%clk 0:00:09]}  Qd6 {[%clk 0:00:19]} 94. Kg8 {[%clk 0:00:10]}  Qe7 {[%clk 0:00:20]} 95. Kh8 {[%clk 0:00:11]}  Nf5 {[%clk 0:00:20]} 96. Kg8 {[%clk 0:00:12]}  Qg7# {[%clk 0:00:21]} 0-1


[Site "https://www.chess.com"]